fUST/lending_fUST_20260126
["ID","MTS","AMOUNT","RATE_DAILY","PERIOD"]
[403561128,1769380240510,-475.31403676,0.00013698,2]
[403561129,1769380240519,-500.0,0.00013698,2]
[403561130,1769380240528,-500.0,0.00013698,2]
[403561131,1769380240537,-500.0,0.00013698,2]
[403561132,1769380240546,-341.29358957,0.00013698,2]
[403561133,1769380240555,-500.0,0.00013698,2]
[403561134,1769380240565,-500.0,0.00013698,2]
[403561135,1769380240575,-500.0,0.00013698,2]
[403561136,1769380240584,-500.0,0.00013698,2]
[403561137,1769380240594,-500.0,0.00013698,2]
[403561139,1769380240603,-431.38296794,0.00013698,2]
[403561141,1769380240612,-529.67257661,0.00013698,2]
[403561143,1769380240621,-500.0,0.00013698,2]
[403561144,1769380240631,-500.0,0.00013698,2]
[403561146,1769380240641,-512.16091962,0.00013698,2]
[403561148,1769380240650,-500.0,0.00013698,2]
[403561151,1769380240659,-169.23494027,0.00013698,2]
[403561152,1769380240668,-500.0,0.00013698,2]
[403561155,1769380240678,-513.53905755,0.00013698,2]
[403561158,1769380240687,-500.0,0.00013698,2]
[403561160,1769380240696,-499.1529462,0.00013698,2]
[403561164,1769380240705,-500.0,0.00013698,2]
[403561166,1769380240715,-548.44,0.00013698,2]
[403561170,1769380240724,-190.76042606,0.00013698,2]
[403561172,1769380240737,-309.23957394,0.00013698,2]
[403561174,1769380240746,-348.81633014,0.00013698,2]
[403563399,1769381432363,-578.0,0.00011219,2]
[403563400,1769381432373,-400.03169047,0.00011219,2]
[403563401,1769381432383,-259.29395795,0.00011644,2]
[403563402,1769381432392,-494.14,0.00012329,2]
[403563403,1769381432401,-262.0,0.00012356,3]
[403563404,1769381432410,-219.19167054,0.00013014,2]
[403563405,1769381432419,-342.14449823,0.00013014,2]
[403563407,1769381432429,-1041.66666667,0.00013265,2]
[403563409,1769381432438,-500.0,0.00013273,2]
[403563411,1769381432447,-500.0,0.00013273,2]
[403563412,1769381432456,-500.0,0.00013273,2]
[403563413,1769381432464,-500.0,0.00013273,2]
[403563414,1769381432473,-500.0,0.00013273,2]
[403563415,1769381432482,-1835.37907864,0.00013598,2]
[403563746,1769381438420,-872.30626161,0.00013598,2]
[403563747,1769381438432,-629.84399447,0.00013598,2]
[403563748,1769381438441,-2773.56790519,0.00013608,2]
[403563749,1769381438451,-1368.0,0.00013617,2]
[403563750,1769381438460,-2149.0,0.00013617,2]
[403563751,1769381438469,-629.0,0.00013617,2]
[403563752,1769381438478,-418.0,0.00013617,2]
[403563753,1769381438487,-761.561,0.00013617,2]
[403563754,1769381438497,-150.12,0.00013617,2]
[403563755,1769381438506,-168.0,0.00013627,2]
[403563756,1769381438516,-305.96687038,0.00013644,2]
[403563757,1769381438525,-300.0,0.00013673,2]
[403563758,1769381438533,-206.49067078,0.00013697,2]
[403563759,1769381438543,-156.62,0.00013697,2]
[403563760,1769381438552,-500.0,0.00013698,2]
[403563761,1769381438562,-500.0,0.00013698,2]
[403563762,1769381438573,-542.35928573,0.00013698,2]
[403563763,1769381438582,-500.0,0.00013698,2]
[403563764,1769381438591,-500.0,0.00013698,2]
[403563765,1769381438600,-500.0,0.00013698,2]
[403563766,1769381438614,-500.0,0.00013698,2]
[403563767,1769381438623,-616.92249603,0.00013698,2]
[403563768,1769381438632,-500.0,0.00013698,2]
[403563769,1769381438641,-208.88973173,0.00013698,2]
[403563892,1769381440612,-291.11026827,0.00013698,2]
[403563894,1769381440621,-500.0,0.00013698,2]
[403563896,1769381440631,-500.0,0.00013698,2]
[403563898,1769381440639,-392.20129672,0.00013698,2]
[403563900,1769381440652,-107.79870328,0.00013698,2]
[403563902,1769381440662,-500.0,0.00013698,2]
[403563905,1769381440671,-500.0,0.00013698,2]
[403563907,1769381440681,-500.0,0.00013698,2]
[403563908,1769381440690,-500.0,0.00013698,2]
[403563911,1769381440699,-500.0,0.00013698,2]
[403563912,1769381440708,-169.11445623,0.00013698,2]
[403563915,1769381440717,-171.87359449,0.00013698,2]
[403563917,1769381440730,-328.12640551,0.00013698,2]
[403563919,1769381440739,-5.62945117,0.00013698,2]
[403563923,1769381440754,-494.37054883,0.00013698,2]
[403563925,1769381440763,-500.0,0.00013698,2]
[403563927,1769381440772,-500.0,0.00013698,2]
[403563929,1769381440781,-282.63771898,0.00013698,2]
[403563931,1769381440790,-126.27120117,0.00013698,2]
[403563933,1769381440805,-373.72879883,0.00013698,2]
[403563935,1769381440815,-419.28075204,0.00013698,2]
[403564358,1769381445507,-80.71924796,0.00013698,2]
[403564361,1769381445517,-311.73169882,0.00013698,2]
[403564363,1769381445528,-188.26830118,0.00013698,2]
[403564365,1769381445537,-316.25559415,0.00013698,2]
[403564367,1769381445546,-500.0,0.00013698,2]
[403564369,1769381445554,-500.0,0.00013698,2]
[403564371,1769381445563,-86.66860467,0.00013698,2]
[403564384,1769381445681,-479.77095336,0.00013698,2]
[403564386,1769381445690,-500.0,0.00013698,2]
[403564388,1769381445699,-500.0,0.00013698,2]
[403564390,1769381445709,-284.96351046,0.00013698,2]
[403564392,1769381445718,-500.0,0.00013698,2]
[403564394,1769381445727,-500.0,0.00013698,2]
[403564396,1769381445736,-324.515802,0.00013698,2]
[403564398,1769381445745,-500.0,0.00013698,2]
[403564400,1769381445754,-704.03,0.00013698,2]
[403564402,1769381445763,-143.04481489,0.00013698,2]
[403564404,1769381445774,-382.54518511,0.00013698,2]
[403564407,1769381445783,-500.0,0.00013698,2]
[403564409,1769381445792,-500.0,0.00013698,2]
[403564411,1769381445802,-241.93494072,0.00013698,2]
[403564413,1769381445814,-258.06505928,0.00013698,2]
[403564415,1769381445823,-500.0,0.00013698,2]
[403564417,1769381445832,-500.0,0.00013698,2]
[403564419,1769381445841,-500.0,0.00013698,2]
[403564421,1769381445850,-415.70769931,0.00013698,2]
[403564423,1769381445862,-84.29230069,0.00013698,2]
[403564425,1769381445871,-500.0,0.00013698,2]
[403564427,1769381445880,-500.0,0.00013698,2]
[403564429,1769381445889,-500.0,0.00013698,2]
[403564431,1769381445898,-462.4378468,0.00013698,2]
[403564433,1769381445907,-500.0,0.00013698,2]
[403564435,1769381445916,-500.0,0.00013698,2]
[403564436,1769381445926,-500.0,0.00013698,2]
[403564438,1769381445935,-500.0,0.00013698,2]
[403564440,1769381445943,-500.0,0.00013698,2]
[403564441,1769381445953,-349.1397537,0.00013698,2]
[403564443,1769381445962,-500.0,0.00013698,2]
[403564445,1769381445971,-507.66215347,0.00013698,2]
[403564447,1769381445979,-500.0,0.00013698,2]
[403564448,1769381445988,-519.37698118,0.00013698,2]
[403564450,1769381445997,-500.0,0.00013698,2]
[403564452,1769381446006,-500.0,0.00013698,2]
[403564453,1769381446015,-500.0,0.00013698,2]
[403564455,1769381446024,-500.0,0.00013698,2]
[403564457,1769381446033,-521.4136975,0.00013698,2]
[403564458,1769381446042,-500.0,0.00013698,2]
[403564460,1769381446052,-221.48845892,0.00013698,2]
[403564462,1769381446063,-278.51154108,0.00013698,2]
[403564464,1769381446073,-500.0,0.00013698,2]
[403564466,1769381446082,-500.0,0.00013698,2]
[403564467,1769381446091,-500.0,0.00013698,2]
[403564469,1769381446100,-500.0,0.00013698,2]
[403564471,1769381446110,-500.0,0.00013698,2]
[403564473,1769381446118,-500.0,0.00013698,2]
[403564474,1769381446127,-500.0,0.00013698,2]
[403564476,1769381446136,-500.0,0.00013698,2]
[403564478,1769381446146,-426.83234856,0.00013698,2]
[403564479,1769381446154,-500.0,0.00013698,2]
[403564481,1769381446164,-112.28895069,0.00013698,2]
[403564483,1769381446175,-387.71104931,0.00013698,2]
[403564485,1769381446185,-500.0,0.00013698,2]
[403564486,1769381446194,-276.3077456,0.00013698,2]
[403564513,1769381446506,-223.6922544,0.00013698,2]
[403564515,1769381446516,-500.0,0.00013698,2]
[403564517,1769381446525,-500.0,0.00013698,2]
[403564518,1769381446534,-500.0,0.00013698,2]
[403564520,1769381446543,-527.64180778,0.00013698,2]
[403564522,1769381446552,-502.7723401,0.00013698,2]
[403564524,1769381446566,-157.34912026,0.00013698,2]
[403564526,1769381446575,-500.0,0.00013698,2]
[403564527,1769381446584,-500.0,0.00013698,2]
[403564529,1769381446593,-500.0,0.00013698,2]
[403564531,1769381446603,-500.0,0.00013698,2]
[403564533,1769381446617,-500.0,0.00013698,2]
[403564535,1769381446627,-500.0,0.00013698,2]
[403564536,1769381446635,-500.0,0.00013698,2]
[403564538,1769381446644,-500.0,0.00013698,2]
[403564540,1769381446655,-500.0,0.00013698,2]
[403564542,1769381446664,-500.0,0.00013698,2]
[403564544,1769381446673,-500.0,0.00013698,2]
[403564546,1769381446681,-500.0,0.00013698,2]
[403564547,1769381446691,-500.0,0.00013698,2]
[403564549,1769381446700,-500.0,0.00013698,2]
[403564551,1769381446710,-500.0,0.00013698,2]
[403564553,1769381446720,-228.93005989,0.00013698,2]
[403564554,1769381446728,-502.76959766,0.00013698,2]
[403564556,1769381446738,-500.0,0.00013698,2]
[403564558,1769381446747,-500.0,0.00013698,2]
[403564560,1769381446757,-500.0,0.00013698,2]
[403564562,1769381446765,-500.0,0.00013698,2]
[403564564,1769381446774,-500.0,0.00013698,2]
[403564565,1769381446783,-500.0,0.00013698,2]
[403564567,1769381446792,-468.03360425,0.00013698,2]
[403564569,1769381446802,-500.0,0.00013698,2]
[403564571,1769381446811,-500.0,0.00013698,2]
[403564573,1769381446821,-500.0,0.00013698,2]
[403564575,1769381446830,-525.94670376,0.00013698,2]
[403564576,1769381446838,-531.58957663,0.00013698,2]
[403564578,1769381446847,-500.0,0.00013698,2]
[403564580,1769381446857,-500.0,0.00013698,2]
[403564582,1769381446866,-500.0,0.00013698,2]
[403564584,1769381446875,-500.0,0.00013698,2]
[403564585,1769381446884,-500.0,0.00013698,2]
[403564587,1769381446893,-500.0,0.00013698,2]
[403564589,1769381446903,-500.0,0.00013698,2]
[403564591,1769381446911,-500.0,0.00013698,2]
[403564593,1769381446922,-500.0,0.00013698,2]
[403564595,1769381446931,-500.0,0.00013698,2]
[403564596,1769381446940,-500.0,0.00013698,2]
[403564598,1769381446949,-500.0,0.00013698,2]
[403564600,1769381446958,-500.0,0.00013698,2]
[403564602,1769381446967,-500.0,0.00013698,2]
[403564604,1769381446976,-500.0,0.00013698,2]
[403564605,1769381446986,-500.0,0.00013698,2]
[403564607,1769381446995,-500.0,0.00013698,2]
[403564609,1769381447004,-500.0,0.00013698,2]
[403564611,1769381447012,-3879.22,0.00013698,2]
[403564613,1769381447022,-500.0,0.00013698,2]
[403564615,1769381447031,-539.42,0.00013698,2]
[403564616,1769381447040,-500.0,0.00013698,2]
[403564618,1769381447049,-1165.78,0.00013698,2]
[403564620,1769381447058,-500.0,0.00013698,2]
[403564622,1769381447067,-500.0,0.00013698,2]
[403564623,1769381447075,-500.0,0.00013698,2]
[403564625,1769381447085,-500.0,0.00013698,2]
[403564627,1769381447094,-642.99,0.00013698,2]
[403564629,1769381447103,-500.0,0.00013698,2]
[403564631,1769381447113,-500.0,0.00013698,2]
[403564633,1769381447122,-500.0,0.00013698,2]
[403564634,1769381447131,-500.0,0.00013698,2]
[403564636,1769381447141,-491.78857217,0.00013698,2]
[403564638,1769381447150,-500.0,0.00013698,2]
[403564640,1769381447160,-500.0,0.00013698,2]
[403564642,1769381447169,-648.55603072,0.00013698,2]
[403564643,1769381447178,-479.82172436,0.00013698,2]
[403564644,1769381447187,-500.0,0.00013698,2]
[403564645,1769381447195,-500.0,0.00013698,2]
[403564646,1769381447205,-500.0,0.00013698,2]
[403564648,1769381447214,-500.0,0.00013698,2]
[403564650,1769381447223,-500.0,0.00013698,2]
[403564652,1769381447233,-500.0,0.00013698,2]
[403564653,1769381447242,-500.0,0.00013698,2]
[403564654,1769381447252,-500.0,0.00013698,2]
[403564655,1769381447261,-369.6109956,0.00013698,2]
[403564656,1769381447270,-500.0,0.00013698,2]
[403564657,1769381447444,-500.0,0.00013698,2]
[403564658,1769381447454,-612.20713084,0.00013698,2]
[403564659,1769381447463,-500.0,0.00013698,2]
[403564660,1769381447472,-500.0,0.00013698,2]
[403564661,1769381447481,-245.11249175,0.00013698,2]
[403564662,1769381447490,-500.0,0.00013698,2]
[403564663,1769381447499,-500.0,0.00013698,2]
[403564664,1769381447508,-500.0,0.00013698,2]
[403564665,1769381447517,-500.0,0.00013698,2]
[403564666,1769381447526,-500.0,0.00013698,2]
[403564667,1769381447535,-500.0,0.00013698,2]
[403564668,1769381447545,-500.0,0.00013698,2]
[403564669,1769381447554,-500.0,0.00013698,2]
[403564670,1769381447563,-500.0,0.00013698,2]
[403564671,1769381447572,-706.4,0.00013698,2]
[403564672,1769381447581,-500.0,0.00013698,2]
[403564673,1769381447591,-500.0,0.00013698,2]
[403564674,1769381447600,-500.0,0.00013698,2]
[403564675,1769381447611,-500.0,0.00013698,2]
[403564676,1769381447622,-500.0,0.00013698,2]
[403564677,1769381447633,-500.0,0.00013698,2]
[403564678,1769381447642,-500.0,0.00013698,2]
[403564679,1769381447652,-500.0,0.00013698,2]
[403564680,1769381447661,-500.0,0.00013698,2]
[403564681,1769381447670,-500.0,0.00013698,2]
[403564682,1769381447679,-3145.23,0.00013698,2]
[403564683,1769381447688,-479.98495457,0.00013698,2]
[403564684,1769381447700,-500.0,0.00013698,2]
[403564685,1769381447710,-244.64639044,0.00013698,2]
[403564686,1769381447720,-500.0,0.00013698,2]
[403564687,1769381447730,-500.0,0.00013698,2]
[403564688,1769381447739,-500.0,0.00013698,2]
[403564689,1769381447748,-207.52836553,0.00013698,2]
[403564690,1769381447759,-1068.11,0.00013698,2]
[403564691,1769381447769,-619.14859792,0.00013698,2]
[403564692,1769381447779,-151.0,0.00013699,2]
[403564693,1769381447788,-177.409954,0.00013699,2]
[403564694,1769381447797,-797.0,0.00013699,2]
[403564695,1769381447807,-505.51707042,0.00013699,2]
[403564696,1769381447816,-500.0,0.00013699,2]
[403564697,1769381447825,-381.06681578,0.00013699,2]
[403564698,1769381447834,-500.0,0.00013699,2]
[403564699,1769381447844,-535.14506174,0.00013699,2]
[403564700,1769381447853,-500.0,0.00013699,2]
[403564701,1769381447862,-500.0,0.00013699,2]
[403564702,1769381447871,-500.0,0.00013699,2]
[403564703,1769381447880,-500.0,0.00013699,2]
[403564704,1769381447889,-500.0,0.00013699,2]
[403564705,1769381447898,-282.24496295,0.00013699,2]
[403564706,1769381447911,-217.75503705,0.00013699,2]
[403564707,1769381447920,-500.0,0.00013699,2]
[403564708,1769381447930,-500.0,0.00013699,2]
[403564709,1769381447939,-500.0,0.00013699,2]
[403564710,1769381447948,-500.0,0.00013699,2]
[403564711,1769381447958,-500.0,0.00013699,2]
[403564712,1769381447967,-500.0,0.00013699,2]
[403564713,1769381447976,-500.0,0.00013699,2]
[403564714,1769381447984,-535.43445502,0.00013699,2]
[403564715,1769381447993,-500.0,0.00013699,2]
[403564716,1769381448002,-500.0,0.00013699,2]
[403564717,1769381448011,-510.9310833,0.00013699,2]
[403564718,1769381448020,-29.33958263,0.00013699,2]
[403564719,1769381448032,-470.66041737,0.00013699,2]
[403564720,1769381448040,-500.0,0.00013699,2]
[403564722,1769381448050,-500.0,0.00013699,2]
[403564724,1769381448059,-500.0,0.00013699,2]
[403564726,1769381448068,-500.0,0.00013699,2]
[403564728,1769381448077,-500.0,0.00013699,2]
[403564729,1769381448086,-500.0,0.00013699,2]
[403564731,1769381448095,-500.0,0.00013699,2]
[403564733,1769381448104,-500.0,0.00013699,2]
[403564735,1769381448113,-528.91247927,0.00013699,2]
[403564737,1769381448123,-500.0,0.00013699,2]
[403564739,1769381448131,-500.0,0.00013699,2]
[403564740,1769381448141,-500.0,0.00013699,2]
[403564742,1769381448150,-500.0,0.00013699,2]
[403564744,1769381448159,-500.0,0.00013699,2]
[403564745,1769381448168,-500.0,0.00013699,2]
[403564746,1769381448177,-500.0,0.00013699,2]
[403564747,1769381448186,-500.0,0.00013699,2]
[403564749,1769381448197,-500.0,0.00013699,2]
[403564751,1769381448207,-500.0,0.00013699,2]
[403564753,1769381448217,-500.0,0.00013699,2]
[403564755,1769381448228,-500.0,0.00013699,2]
[403564756,1769381448238,-448.14088715,0.00013699,2]
[403564757,1769381448247,-130.15948281,0.00013699,2]
[403567524,1769382632414,-166.7,0.00011324,2]
[403567525,1769382632424,-579.0,0.00011324,2]
[403567526,1769382632434,-270.03782966,0.00011705,2]
[403567527,1769382632446,-318.0,0.00012849,3]
[403567528,1769382632455,-191.47065275,0.00013013,2]
[403567540,1769382638734,-108.52934725,0.00013013,2]
[403567541,1769382638744,-300.0,0.00013013,2]
[403567542,1769382638753,-108.89941294,0.00013013,2]
[403567543,1769382638765,-356.01301693,0.00013013,2]
[403567544,1769382638985,-735.08757013,0.00013013,2]
[403567545,1769382638995,-160.91746774,0.00013014,2]
[403567546,1769382639006,-289.65144193,0.00013014,2]
[403567547,1769382639015,-514.93589677,0.00013014,2]
[403567548,1769382639025,-804.5873387,0.00013014,2]
[403567549,1769382639036,-1157.44716196,0.00013014,2]
[403567550,1769382639046,-208.83585459,0.00013014,2]
[403567551,1769382639056,-238.6695481,0.00013014,2]
[403567552,1769382639066,-372.54824774,0.00013014,2]
[403567553,1769382639075,-1041.66666667,0.00013265,2]
[403567554,1769382639085,-500.0,0.00013273,2]
[403567555,1769382639095,-500.0,0.00013273,2]
[403567556,1769382639104,-500.0,0.00013273,2]
[403567557,1769382639114,-500.0,0.00013273,2]
[403567558,1769382639123,-279.0,0.00013612,2]
[403567559,1769382639133,-2149.0,0.00013617,2]
[403567560,1769382639143,-1368.0,0.00013617,2]
[403567561,1769382639152,-629.0,0.00013617,2]
[403567562,1769382639162,-715.0,0.00013617,2]
[403567563,1769382639172,-179.539,0.00013617,2]
[403567564,1769382639181,-418.0,0.00013617,2]
[403567565,1769382639193,-418.0,0.00013617,2]
[403567566,1769382639202,-279.0,0.00013673,2]
[403567567,1769382639211,-300.0,0.00013673,2]
[403567568,1769382639221,-500.0,0.00013697,2]
[403567569,1769382639231,-500.0,0.00013697,2]
[403567570,1769382639240,-330.20517337,0.00013697,2]
[403567571,1769382639250,-156.62,0.00013697,2]
[403567572,1769382639260,-508.61497178,0.00013698,2]
[403567573,1769382639270,-500.0,0.00013698,2]
[403567574,1769382639279,-500.0,0.00013698,2]
[403567575,1769382639288,-500.0,0.00013698,2]
[403567576,1769382639297,-500.0,0.00013698,2]
[403567577,1769382639307,-500.0,0.00013698,2]
[403567578,1769382639316,-500.0,0.00013698,2]
[403567579,1769382639325,-500.0,0.00013698,2]
[403567580,1769382639335,-500.0,0.00013698,2]
[403567581,1769382639344,-308.28139364,0.00013698,2]
[403567582,1769382639353,-500.0,0.00013698,2]
[403567583,1769382639363,-500.0,0.00013698,2]
[403567584,1769382639372,-355.09778852,0.00013698,2]
[403567585,1769382639381,-545.68592682,0.00013698,2]
[403567586,1769382639394,-56.03407318,0.00013698,2]
[403567587,1769382639403,-432.6051547,0.00013698,2]
[403568155,1769382646705,-71.0848453,0.00013698,2]
[403568158,1769382646715,-500.0,0.00013698,2]
[403568160,1769382646725,-500.0,0.00013698,2]
[403568162,1769382646734,-500.0,0.00013698,2]
[403568164,1769382646744,-500.0,0.00013698,2]
[403568166,1769382646753,-500.0,0.00013698,2]
[403568168,1769382646762,-500.0,0.00013698,2]
[403568170,1769382646771,-500.0,0.00013698,2]
[403568172,1769382646781,-490.38937209,0.00013698,2]
[403568190,1769382646949,-54.56605351,0.00013698,2]
[403568192,1769382646959,-500.0,0.00013698,2]
[403568194,1769382646972,-309.98157772,0.00013698,2]
[403568196,1769382646982,-500.0,0.00013698,2]
[403568198,1769382646991,-500.0,0.00013698,2]
[403568200,1769382647000,-500.0,0.00013698,2]
[403568202,1769382647010,-500.0,0.00013698,2]
[403568204,1769382647020,-500.0,0.00013698,2]
[403568206,1769382647030,-500.0,0.00013698,2]
[403568208,1769382647039,-500.0,0.00013698,2]
[403568210,1769382647052,-500.0,0.00013698,2]
[403568212,1769382647061,-500.0,0.00013698,2]
[403568214,1769382647071,-590.54,0.00013698,2]
[403568216,1769382647080,-500.0,0.00013698,2]
[403568218,1769382647089,-500.0,0.00013698,2]
[403568220,1769382647098,-500.0,0.00013698,2]
[403568222,1769382647107,-500.0,0.00013698,2]
[403568224,1769382647116,-500.0,0.00013698,2]
[403568226,1769382647125,-500.0,0.00013698,2]
[403568228,1769382647135,-500.0,0.00013698,2]
[403568229,1769382647144,-500.0,0.00013698,2]
[403568231,1769382647153,-500.0,0.00013698,2]
[403568233,1769382647162,-500.0,0.00013698,2]
[403568235,1769382647174,-500.0,0.00013698,2]
[403568237,1769382647183,-500.0,0.00013698,2]
[403568239,1769382647192,-500.0,0.00013698,2]
[403568241,1769382647202,-544.82,0.00013698,2]
[403568243,1769382647210,-500.0,0.00013698,2]
[403568245,1769382647220,-500.0,0.00013698,2]
[403568247,1769382647229,-500.0,0.00013698,2]
[403568249,1769382647238,-500.0,0.00013698,2]
[403568251,1769382647248,-500.0,0.00013698,2]
[403568253,1769382647258,-500.0,0.00013698,2]
[403568255,1769382647267,-500.0,0.00013698,2]
[403568257,1769382647276,-500.0,0.00013698,2]
[403568259,1769382647286,-500.0,0.00013698,2]
[403568261,1769382647295,-500.0,0.00013698,2]
[403568263,1769382647305,-500.0,0.00013698,2]
[403568265,1769382647314,-500.0,0.00013698,2]
[403568267,1769382647324,-500.0,0.00013698,2]
[403568269,1769382647333,-500.0,0.00013698,2]
[403568271,1769382647342,-500.0,0.00013698,2]
[403568273,1769382647351,-500.0,0.00013698,2]
[403568275,1769382647360,-500.0,0.00013698,2]
[403568277,1769382647369,-558.79769059,0.00013698,2]
[403568279,1769382647379,-500.0,0.00013698,2]
[403568281,1769382647388,-500.0,0.00013698,2]
[403568283,1769382647397,-500.0,0.00013698,2]
[403568285,1769382647407,-500.0,0.00013698,2]
[403568287,1769382647416,-500.0,0.00013698,2]
[403568289,1769382647425,-500.0,0.00013698,2]
[403568291,1769382647434,-500.0,0.00013698,2]
[403568293,1769382647442,-548.89278315,0.00013698,2]
[403568295,1769382647451,-500.0,0.00013698,2]
[403568297,1769382647460,-500.0,0.00013698,2]
[403568299,1769382647469,-500.0,0.00013698,2]
[403568301,1769382647479,-500.0,0.00013698,2]
[403568303,1769382647488,-500.0,0.00013698,2]
[403568305,1769382647497,-500.0,0.00013698,2]
[403568307,1769382647506,-500.0,0.00013698,2]
[403568309,1769382647515,-190.46139356,0.00013698,2]
[403568312,1769382647535,-309.53860644,0.00013698,2]
[403568314,1769382647544,-285.95140655,0.00013698,2]
[403568316,1769382647554,-500.0,0.00013698,2]
[403568318,1769382647563,-674.7,0.00013698,2]
[403568320,1769382647572,-154.96717816,0.00013698,2]
[403568322,1769382647581,-500.0,0.00013698,2]
[403568324,1769382647591,-500.0,0.00013698,2]
[403568326,1769382647599,-500.0,0.00013698,2]
[403568327,1769382647609,-192.80680885,0.00013698,2]
[403568344,1769382647758,-307.19319115,0.00013698,2]
[403568347,1769382647767,-500.0,0.00013698,2]
[403568350,1769382647776,-500.0,0.00013698,2]
[403568353,1769382647786,-500.0,0.00013698,2]
[403568357,1769382647796,-500.0,0.00013698,2]
[403568361,1769382647805,-500.0,0.00013698,2]
[403568364,1769382647815,-363.49482852,0.00013698,2]
[403571259,1769383087191,-300.0,0.000138,30]
[403571260,1769383100933,-300.0,0.000138,30]
[403571261,1769383111520,-300.0,0.000138,30]
[403571287,1769383832783,-594.0,0.00012321,2]
[403571288,1769383832793,-284.19068163,0.00012321,2]
[403571289,1769383832802,-118.9512976,0.00012329,2]
[403571305,1769383838682,-375.1887024,0.00012329,2]
[403571306,1769383838691,-231.6764886,0.00012516,2]
[403571332,1769383846878,-221.3235114,0.00012516,2]
[403571333,1769383846888,-311.0,0.00012767,3]
[403571334,1769383846897,-1425.5324886,0.00013,2]
[403571335,1769383846908,-992.76974709,0.00013,2]
[403571336,1769383846918,-809.26680114,0.00013024,2]
[403571353,1769385031701,-577.0,0.00011157,2]
[403571355,1769385031711,-234.4756989,0.00011157,2]
[403571357,1769385031722,-205.16531676,0.00012053,2]
[403571360,1769385031734,-77.36067881,0.00012053,2]
[403571361,1769385031742,-170.447101,0.0001256,2]
[403571362,1769385031751,-170.447101,0.00012748,2]
[403571363,1769385031760,-285.0,0.00012767,3]
[403571364,1769385031770,-170.447101,0.00012937,2]
[403571365,1769385031778,-252.27393197,0.00013264,2]
[403571366,1769385031789,-789.3927347,0.00013264,2]
[403571367,1769385031798,-1049.82069431,0.00013265,2]
[403571368,1769385031825,-908.03530569,0.00013265,2]
[403571369,1769385031835,-500.0,0.00013273,2]
[403571370,1769385031844,-500.0,0.00013273,2]
[403571371,1769385031857,-500.0,0.00013273,2]
[403571372,1769385031866,-500.0,0.00013273,2]
[403571373,1769385031875,-500.0,0.00013273,2]
[403571374,1769385031884,-3458.67600573,0.00013273,2]
[403571406,1769385037839,-2149.64772755,0.00013273,2]
[403571407,1769385038020,-557.69832396,0.00013273,2]
[403571408,1769385038038,-729.41544042,0.00013273,2]
[403571409,1769385038050,-941.49,0.00013273,2]
[403571410,1769385038065,-33.94413579,0.00013273,2]
[403571411,1769385038074,-253.49586421,0.0001349,2]
[403571412,1769385038087,-324.58997429,0.0001349,2]
[403571413,1769385038096,-1234.14120095,0.0001358,2]
[403571443,1769385040161,-133.85879905,0.0001358,2]
[403571445,1769385040171,-629.0,0.0001358,2]
[403571446,1769385040180,-2149.0,0.0001358,2]
[403571448,1769385040189,-401.00072763,0.0001358,2]
[403571450,1769385040200,-16.99927237,0.0001358,2]